[Event "*** Titled Tuesday 3|2 Blitz (Late)"]
[Site "Chess.com"]
[Date "2016.12.06"]
[Round "8"]
[White "Sethu0025"]
[Black "1e41-0"]
[Result "1-0"]
[WhiteElo "2607"]
[BlackElo "2202"]
[TimeControl "180+2"]
[EndTime "18:36:30 PST"]
[Termination "Sethu0025 won by resignation"]

1. e4 {[%clk 0:03:02]} 1... c5 {[%clk 0:02:59.9]} 2. Nf3 {[%clk 0:03:02.4]} 2...
e6 {[%clk 0:03:01]} 3. d4 {[%clk 0:03:02.8]} 3... cxd4 {[%clk 0:03:02.9]} 4.
Nxd4 {[%clk 0:03:04.4]} 4... a6 {[%clk 0:03:04]} 5. Nc3 {[%clk 0:03:05.3]} 5...
b5 {[%clk 0:03:05.3]} 6. Bd3 {[%clk 0:03:06.2]} 6... Bc5 {[%clk 0:03:05.6]} 7.
Nb3 {[%clk 0:03:06.5]} 7... Be7 {[%clk 0:03:06.9]} 8. Qg4 {[%clk 0:03:07.4]}
8... Nf6 {[%clk 0:03:05.5]} 9. Qg3 {[%clk 0:03:04.5]} 9... d6 {[%clk 0:03:01.1]}
10. O-O {[%clk 0:03:05.2]} 10... O-O {[%clk 0:02:59.1]} 11. f4 {[%clk
0:03:02.4]} 11... Nbd7 {[%clk 0:02:52.3]} 12. a3 {[%clk 0:03:03]} 12... Qc7
{[%clk 0:02:51.4]} 13. Bd2 {[%clk 0:03:01.3]} 13... Bb7 {[%clk 0:02:52.6]} 14.
Rae1 {[%clk 0:03:01.8]} 14... Rac8 {[%clk 0:02:51.5]} 15. e5 {[%clk 0:03:00.7]}
15... dxe5 {[%clk 0:02:46.2]} 16. fxe5 {[%clk 0:03:00.9]} 16... Nd5 {[%clk
0:02:47.7]} 17. Bh6 {[%clk 0:02:42.1]} 17... Qb6+ {[%clk 0:02:41.3]} 18. Kh1
{[%clk 0:02:40.9]} 18... g6 {[%clk 0:02:38.8]} 19. Bxf8 {[%clk 0:02:40.7]} 19...
Bxf8 {[%clk 0:02:40.7]} 20. Nxd5 {[%clk 0:02:27]} 20... Bxd5 {[%clk 0:02:39.4]}
21. Qf4 {[%clk 0:02:23.1]} 21... Qb7 {[%clk 0:02:33.6]} 22. Qxf7+ {[%clk
0:02:23.1]} 22... Kh8 {[%clk 0:02:34.5]} 23. Qf2 {[%clk 0:02:07.2]} 23... Nc5
{[%clk 0:02:34.5]} 24. Nd4 {[%clk 0:01:51.4]} 24... Nxd3 {[%clk 0:02:31.2]} 25.
cxd3 {[%clk 0:01:51.8]} 25... Bc5 {[%clk 0:02:32.9]} 26. Rc1 {[%clk 0:01:49.7]}
26... Rf8 {[%clk 0:02:20.3]} 27. Qe2 {[%clk 0:01:42.7]} 27... Rxf1+ {[%clk
0:02:17.2]} 28. Qxf1 {[%clk 0:01:43.6]} 28... Bxg2+ {[%clk 0:01:59.1]} 29. Qxg2
{[%clk 0:01:43.6]} 29... Qxg2+ {[%clk 0:02:01]} 30. Kxg2 {[%clk 0:01:44.7]}
30... Bxd4 {[%clk 0:02:02.9]} 31. Rc6 {[%clk 0:01:40]} 31... Bxe5 {[%clk
0:02:03]} 32. b4 {[%clk 0:01:36.9]} 32... Bb2 {[%clk 0:01:59.4]} 33. Rxa6 {[%clk
0:01:37.8]} 33... Kg7 {[%clk 0:01:57.2]} 34. a4 {[%clk 0:01:37]} 34... bxa4
{[%clk 0:01:57.1]} 35. b5 {[%clk 0:01:38.1]} 35... a3 {[%clk 0:01:47.8]} 36. b6
{[%clk 0:01:38.8]} 36... Kf6 {[%clk 0:01:43.4]} 37. b7 {[%clk 0:01:39.7]} 37...
Be5 {[%clk 0:01:45.1]} 38. Rxa3 {[%clk 0:01:40.5]} 38... Ke7 {[%clk 0:01:46.3]}
39. Ra8 {[%clk 0:01:41]} 39... Kd7 {[%clk 0:01:46.9]} 1-0

[Event "*** Titled Tuesday 3|2 Blitz (Late)"]
[Site "Chess.com"]
[Date "2016.12.06"]
[Round "8"]
[White "Peroncio"]
[Black "Scott-fox21"]
[Result "1-0"]
[WhiteElo "2474"]
[BlackElo "2176"]
[TimeControl "180+2"]
[EndTime "18:37:36 PST"]
[Termination "Peroncio won by resignation"]

1. e4 {[%clk 0:03:02]} 1... c5 {[%clk 0:03:00.9]} 2. Nf3 {[%clk 0:03:02.1]} 2...
d6 {[%clk 0:03:02.4]} 3. d4 {[%clk 0:03:03.2]} 3... cxd4 {[%clk 0:03:04.3]} 4.
Nxd4 {[%clk 0:03:04.8]} 4... Nf6 {[%clk 0:03:05.6]} 5. Nc3 {[%clk 0:03:06.1]}
5... Nc6 {[%clk 0:03:05.4]} 6. Bg5 {[%clk 0:03:06.9]} 6... e6 {[%clk 0:03:06.4]}
7. Qd2 {[%clk 0:03:07.9]} 7... a6 {[%clk 0:03:06.3]} 8. O-O-O {[%clk 0:03:08.4]}
8... Bd7 {[%clk 0:03:07.2]} 9. f4 {[%clk 0:03:08.8]} 9... h6 {[%clk 0:03:06.6]}
10. Bh4 {[%clk 0:03:08.5]} 10... g5 {[%clk 0:03:07.4]} 11. fxg5 {[%clk
0:03:09.1]} 11... Ng4 {[%clk 0:03:08.5]} 12. Nf3 {[%clk 0:02:59.9]} 12... Be7
{[%clk 0:03:00.7]} 13. Bg3 {[%clk 0:02:49.2]} 13... Nge5 {[%clk 0:02:31.3]} 14.
gxh6 {[%clk 0:02:33.2]} 14... Nxf3 {[%clk 0:02:10]} 15. gxf3 {[%clk 0:02:33.9]}
15... e5 {[%clk 0:01:06.5]} 16. Kb1 {[%clk 0:02:32.1]} 16... Nd4 {[%clk
0:01:02.9]} 17. Nd5 {[%clk 0:02:20.6]} 17... Bg5 {[%clk 0:00:55.2]} 18. f4
{[%clk 0:02:18.6]} 18... Bxh6 {[%clk 0:00:55.7]} 19. Qf2 {[%clk 0:02:04.4]}
19... Bg4 {[%clk 0:00:50.4]} 20. Rd3 {[%clk 0:01:54.9]} 20... Qa5 {[%clk
0:00:26.7]} 21. fxe5 {[%clk 0:01:43.3]} 21... dxe5 {[%clk 0:00:21.2]} 22. Nf6+
{[%clk 0:01:33.6]} 22... Ke7 {[%clk 0:00:21.9]} 23. Nxg4 {[%clk 0:01:35]} 23...
f5 {[%clk 0:00:18.9]} 24. Nxe5 {[%clk 0:01:32]} 24... Nxc2 {[%clk 0:00:18.3]}
25. Rd7+ {[%clk 0:01:24.4]} 25... Ke8 {[%clk 0:00:17.2]} 26. Qxc2 {[%clk
0:01:05.4]} 26... Rc8 {[%clk 0:00:16.5]} 1-0

[Event "*** Titled Tuesday 3|2 Blitz (Late)"]
[Site "Chess.com"]
[Date "2016.12.06"]
[Round "8"]
[White "Kawhi_Leonard2"]
[Black "Rating-Schmating"]
[Result "1-0"]
[WhiteElo "2237"]
[BlackElo "2225"]
[TimeControl "180+2"]
[EndTime "18:38:22 PST"]
[Termination "Kawhi_Leonard2 won by checkmate"]

1. e4 {[%clk 0:03:02]} 1... e6 {[%clk 0:03:00.8]} 2. d4 {[%clk 0:03:02.3]} 2...
d5 {[%clk 0:03:01.3]} 3. Nd2 {[%clk 0:03:03.9]} 3... a6 {[%clk 0:03:02.1]} 4.
Ngf3 {[%clk 0:03:02.7]} 4... Nf6 {[%clk 0:03:02.8]} 5. Bd3 {[%clk 0:02:59.4]}
5... c5 {[%clk 0:03:03.4]} 6. c3 {[%clk 0:02:51.8]} 6... Nc6 {[%clk 0:03:03.7]}
7. O-O {[%clk 0:02:42.1]} 7... Be7 {[%clk 0:03:00.1]} 8. e5 {[%clk 0:02:37.1]}
8... Nd7 {[%clk 0:03:00.8]} 9. Re1 {[%clk 0:02:36]} 9... g5 {[%clk 0:03:01.8]}
10. dxc5 {[%clk 0:02:30.5]} 10... g4 {[%clk 0:03:02.5]} 11. Nd4 {[%clk
0:02:30.8]} 11... Ncxe5 {[%clk 0:03:03.7]} 12. Be2 {[%clk 0:02:26]} 12... h5
{[%clk 0:03:02.5]} 13. b4 {[%clk 0:02:26]} 13... Bf6 {[%clk 0:02:39.1]} 14. f4
{[%clk 0:02:26.2]} 14... Nc6 {[%clk 0:02:38.8]} 15. N2b3 {[%clk 0:02:24.5]}
15... Nxd4 {[%clk 0:02:38.3]} 16. Nxd4 {[%clk 0:02:19.6]} 16... Bxd4+ {[%clk
0:02:38.3]} 17. Qxd4 {[%clk 0:02:16.6]} 17... Qf6 {[%clk 0:02:38.8]} 18. Be3
{[%clk 0:02:17.5]} 18... Qxd4 {[%clk 0:02:38.3]} 19. Bxd4 {[%clk 0:02:18.5]}
19... Rg8 {[%clk 0:02:39]} 20. Bd3 {[%clk 0:02:16.3]} 20... Ke7 {[%clk
0:02:35.7]} 21. Re2 {[%clk 0:02:07.3]} 21... f6 {[%clk 0:02:31.6]} 22. Rae1
{[%clk 0:02:07.2]} 22... Nf8 {[%clk 0:02:31.6]} 23. a4 {[%clk 0:01:57.1]} 23...
Bd7 {[%clk 0:02:31.4]} 24. Ra1 {[%clk 0:01:36.3]} 24... Kf7 {[%clk 0:02:31.1]}
25. Rea2 {[%clk 0:01:36]} 25... Ng6 {[%clk 0:02:30.5]} 26. g3 {[%clk 0:01:33.8]}
26... Ne7 {[%clk 0:02:30.4]} 27. b5 {[%clk 0:01:32.5]} 27... axb5 {[%clk
0:02:31]} 28. axb5 {[%clk 0:01:33.7]} 28... Rxa2 {[%clk 0:02:32]} 29. Rxa2
{[%clk 0:01:34.9]} 29... Rc8 {[%clk 0:02:31.8]} 30. Ra7 {[%clk 0:01:33]} 30...
e5 {[%clk 0:02:33]} 31. fxe5 {[%clk 0:01:24.4]} 31... fxe5 {[%clk 0:02:33.6]}
32. Bxe5 {[%clk 0:01:22.9]} 32... Rxc5 {[%clk 0:02:30.6]} 33. Rxb7 {[%clk
0:01:23.2]} 33... Ke6 {[%clk 0:02:31.3]} 34. Bd4 {[%clk 0:01:17.1]} 34... Rc8
{[%clk 0:02:32.1]} 35. Rb6+ {[%clk 0:01:14.1]} 35... Kf7 {[%clk 0:02:30.9]} 36.
Rh6 {[%clk 0:01:14.7]} 36... Rb8 {[%clk 0:02:13.3]} 37. b6 {[%clk 0:01:14.5]}
37... Nc6 {[%clk 0:02:04.6]} 38. Bg6+ {[%clk 0:00:30.9]} 38... Ke7 {[%clk
0:02:03.5]} 39. Bc5+ {[%clk 0:00:30.7]} 39... Kf6 {[%clk 0:01:31]} 40. Be8+
{[%clk 0:00:26.3]} 40... Kg5 {[%clk 0:01:28.4]} 41. Bxd7 {[%clk 0:00:18.9]}
41... Ne5 {[%clk 0:01:20.2]} 42. Be3# {[%clk 0:00:17.5]} 1-0

[Event "*** Titled Tuesday 3|2 Blitz (Late)"]
[Site "Chess.com"]
[Date "2016.12.06"]
[Round "8"]
[White "chessking2151"]
[Black "Wilsonpalencia"]
[Result "0-1"]
[WhiteElo "2391"]
[BlackElo "2474"]
[TimeControl "180+2"]
[EndTime "18:38:49 PST"]
[Termination "Wilsonpalencia won by resignation"]

1. e4 {[%clk 0:03:02]} 1... c5 {[%clk 0:02:58.3]} 2. Nf3 {[%clk 0:03:02.5]} 2...
d6 {[%clk 0:02:58.7]} 3. d4 {[%clk 0:03:02.9]} 3... cxd4 {[%clk 0:02:59.2]} 4.
Nxd4 {[%clk 0:03:04.8]} 4... Nf6 {[%clk 0:03:00.7]} 5. Nc3 {[%clk 0:03:05.7]}
5... g6 {[%clk 0:03:00.8]} 6. Be3 {[%clk 0:03:02.9]} 6... Bg7 {[%clk 0:03:01.9]}
7. f3 {[%clk 0:02:59.4]} 7... O-O {[%clk 0:03:00.9]} 8. Bc4 {[%clk 0:02:59.1]}
8... Nc6 {[%clk 0:02:59.9]} 9. Qd2 {[%clk 0:02:59.8]} 9... Ne5 {[%clk
0:02:59.3]} 10. Bb3 {[%clk 0:02:59.7]} 10... Bd7 {[%clk 0:03:00.7]} 11. O-O
{[%clk 0:02:50.1]} 11... Rc8 {[%clk 0:02:55.2]} 12. Qe2 {[%clk 0:02:41.3]} 12...
a6 {[%clk 0:02:53.9]} 13. a4 {[%clk 0:02:41.4]} 13... Re8 {[%clk 0:02:51.5]} 14.
Nd5 {[%clk 0:02:40.9]} 14... Nxd5 {[%clk 0:02:46.6]} 15. Bxd5 {[%clk 0:02:39.2]}
15... Qc7 {[%clk 0:02:43.7]} 16. Ra3 {[%clk 0:02:26.8]} 16... e6 {[%clk
0:02:40]} 17. Rc3 {[%clk 0:02:07.3]} 17... Nc6 {[%clk 0:02:36.2]} 18. Bxc6
{[%clk 0:01:48.6]} 18... bxc6 {[%clk 0:02:35.5]} 19. Rc4 {[%clk 0:01:34.3]}
19... Rb8 {[%clk 0:02:32.8]} 20. b3 {[%clk 0:01:11.3]} 20... e5 {[%clk
0:02:31.1]} 21. Nxc6 {[%clk 0:01:02.9]} 21... Bxc6 {[%clk 0:02:30.9]} 22. Qd2
{[%clk 0:01:04.4]} 22... Bf8 {[%clk 0:02:21.7]} 23. Rd1 {[%clk 0:01:02.9]} 23...
Rec8 {[%clk 0:02:19]} 24. Qc3 {[%clk 0:00:49.3]} 24... Qb7 {[%clk 0:02:16.9]}
25. h4 {[%clk 0:00:47.3]} 25... f5 {[%clk 0:02:13.5]} 26. Qd3 {[%clk 0:00:33.2]}
26... f4 {[%clk 0:02:10.3]} 27. Bf2 {[%clk 0:00:33.6]} 27... Bd7 {[%clk
0:02:09.3]} 28. h5 {[%clk 0:00:31]} 28... gxh5 {[%clk 0:02:04.1]} 29. Be1 {[%clk
0:00:31.9]} 29... Kh8 {[%clk 0:01:58]} 30. Bc3 {[%clk 0:00:27.7]} 30... Be6
{[%clk 0:01:54.2]} 31. Rxc8 {[%clk 0:00:27.7]} 31... Rxc8 {[%clk 0:01:54.5]} 32.
Bb2 {[%clk 0:00:28.7]} 32... Qb6+ {[%clk 0:01:52.8]} 33. Kf1 {[%clk 0:00:27]}
33... h4 {[%clk 0:01:50.1]} 34. a5 {[%clk 0:00:16.8]} 34... Qa7 {[%clk
0:01:43.9]} 35. Ba3 {[%clk 0:00:16.4]} 35... h3 {[%clk 0:01:42]} 36. Bxd6 {[%clk
0:00:13.5]} 36... h2 {[%clk 0:01:36.9]} 37. Bxe5+ {[%clk 0:00:13.6]} 37... Kg8
{[%clk 0:01:32.2]} 38. Ke2 {[%clk 0:00:13.6]} 38... Rxc2+ {[%clk 0:01:28.7]} 39.
Rd2 {[%clk 0:00:13.9]} 39... Rxd2+ {[%clk 0:01:27.4]} 40. Kxd2 {[%clk
0:00:14.9]} 40... h1=Q {[%clk 0:01:22]} 0-1

[Event "*** Titled Tuesday 3|2 Blitz (Late)"]
[Site "Chess.com"]
[Date "2016.12.06"]
[Round "8"]
[White "MattyDPerrine"]
[Black "amurdercastle"]
[Result "1-0"]
[WhiteElo "2244"]
[BlackElo "2384"]
[TimeControl "180+2"]
[EndTime "18:39:18 PST"]
[Termination "MattyDPerrine won by checkmate"]

1. d4 {[%clk 0:02:24.1]} 1... d5 {[%clk 0:03:00.1]} 2. c4 {[%clk 0:02:23.1]}
2... c6 {[%clk 0:02:58.5]} 3. Nc3 {[%clk 0:02:24.1]} 3... Nf6 {[%clk 0:02:58.5]}
4. Nf3 {[%clk 0:02:25.3]} 4... e6 {[%clk 0:02:58.3]} 5. e3 {[%clk 0:02:26.3]}
5... Nbd7 {[%clk 0:02:58.1]} 6. Qc2 {[%clk 0:02:24.4]} 6... Bd6 {[%clk
0:02:56.9]} 7. Bd2 {[%clk 0:02:23.2]} 7... O-O {[%clk 0:02:57.2]} 8. g4 {[%clk
0:02:23.6]} 8... h6 {[%clk 0:02:41.4]} 9. Rg1 {[%clk 0:02:20.5]} 9... e5 {[%clk
0:02:41.8]} 10. O-O-O {[%clk 0:01:50.8]} 10... e4 {[%clk 0:02:40.6]} 11. Nh4
{[%clk 0:01:49.4]} 11... Re8 {[%clk 0:02:35.6]} 12. h3 {[%clk 0:01:39.1]} 12...
Nf8 {[%clk 0:02:23.2]} 13. Kb1 {[%clk 0:01:24.1]} 13... Be6 {[%clk 0:02:10.8]}
14. cxd5 {[%clk 0:00:32.6]} 14... cxd5 {[%clk 0:01:57.6]} 15. Bb5 {[%clk
0:00:21.4]} 15... Re7 {[%clk 0:01:56.8]} 16. Qb3 {[%clk 0:00:19.4]} 16... a6
{[%clk 0:01:43.6]} 17. Be2 {[%clk 0:00:19.2]} 17... Qd7 {[%clk 0:01:41.8]} 18.
f3 {[%clk 0:00:16.7]} 18... b5 {[%clk 0:01:34.4]} 19. f4 {[%clk 0:00:17]} 19...
Qb7 {[%clk 0:01:27.9]} 20. g5 {[%clk 0:00:14.6]} 20... hxg5 {[%clk 0:01:28.5]}
21. fxg5 {[%clk 0:00:16.1]} 21... Ne8 {[%clk 0:01:25.1]} 22. g6 {[%clk
0:00:16.2]} 22... Nxg6 {[%clk 0:01:24.7]} 23. Nxg6 {[%clk 0:00:17.3]} 23... fxg6
{[%clk 0:01:26.6]} 24. Rxg6 {[%clk 0:00:18.8]} 24... b4 {[%clk 0:01:12.2]} 25.
Na4 {[%clk 0:00:16.5]} 25... Bf5 {[%clk 0:01:10]} 26. Rg5 {[%clk 0:00:16.3]}
26... Be6 {[%clk 0:01:08.8]} 27. h4 {[%clk 0:00:14.1]} 27... Nf6 {[%clk
0:01:09.9]} 28. h5 {[%clk 0:00:14.2]} 28... Kh7 {[%clk 0:01:03.5]} 29. Rdg1
{[%clk 0:00:14.7]} 29... a5 {[%clk 0:00:56.6]} 30. Rg6 {[%clk 0:00:15.8]} 30...
Bf5 {[%clk 0:00:54.4]} 31. R6g5 {[%clk 0:00:16.4]} 31... Be6 {[%clk 0:00:55.8]}
32. Be1 {[%clk 0:00:17.2]} 32... Rh8 {[%clk 0:00:50.2]} 33. Bh4 {[%clk
0:00:17.7]} 33... Rf7 {[%clk 0:00:49.4]} 34. Rg6 {[%clk 0:00:16.6]} 34... Bf5
{[%clk 0:00:48]} 35. Qd1 {[%clk 0:00:17.2]} 35... Qd7 {[%clk 0:00:44.2]} 36.
Bxf6 {[%clk 0:00:17.8]} 36... gxf6 {[%clk 0:00:44.1]} 37. Qf1 {[%clk 0:00:17.8]}
37... Bf8 {[%clk 0:00:30.3]} 38. Nc5 {[%clk 0:00:18.1]} 38... Bxc5 {[%clk
0:00:30.8]} 39. dxc5 {[%clk 0:00:19.6]} 39... Qe6 {[%clk 0:00:31]} 40. Qf4
{[%clk 0:00:20.2]} 40... Bxg6 {[%clk 0:00:27.8]} 41. Rxg6 {[%clk 0:00:22.1]}
41... Rg7 {[%clk 0:00:22.4]} 42. Qh6+ {[%clk 0:00:23.3]} 42... Kg8 {[%clk
0:00:24.3]} 43. Qxg7# {[%clk 0:00:25.1]} 1-0

[Event "*** Titled Tuesday 3|2 Blitz (Late)"]
[Site "Chess.com"]
[Date "2016.12.06"]
[Round "8"]
[White "Buffy7"]
[Black "silverback96"]
[Result "1-0"]
[WhiteElo "2471"]
[BlackElo "2009"]
[TimeControl "180+2"]
[EndTime "18:39:20 PST"]
[Termination "Buffy7 won by checkmate"]

1. Nf3 {[%clk 0:03:02]} 1... c5 {[%clk 0:02:59.4]} 2. g3 {[%clk 0:03:03.5]} 2...
Nc6 {[%clk 0:03:00.5]} 3. Bg2 {[%clk 0:03:05.1]} 3... e5 {[%clk 0:03:02.2]} 4.
O-O {[%clk 0:03:07]} 4... g6 {[%clk 0:03:03.8]} 5. c4 {[%clk 0:03:07.5]} 5...
Bg7 {[%clk 0:03:05.4]} 6. Nc3 {[%clk 0:03:08.9]} 6... d6 {[%clk 0:03:07.1]} 7.
Ne1 {[%clk 0:03:10.5]} 7... Be6 {[%clk 0:03:08.2]} 8. d3 {[%clk 0:03:09.5]} 8...
Nge7 {[%clk 0:03:09.5]} 9. Nc2 {[%clk 0:03:10.9]} 9... d5 {[%clk 0:03:11.4]} 10.
cxd5 {[%clk 0:03:11]} 10... Nxd5 {[%clk 0:03:13.3]} 11. Ne3 {[%clk 0:03:02.9]}
11... Nde7 {[%clk 0:03:14.2]} 12. Ne4 {[%clk 0:02:49.6]} 12... b6 {[%clk
0:03:13.7]} 13. Ng5 {[%clk 0:02:50.8]} 13... Bd7 {[%clk 0:03:14.3]} 14. a3
{[%clk 0:02:51.9]} 14... O-O {[%clk 0:02:57.5]} 15. Rb1 {[%clk 0:02:51.7]} 15...
h6 {[%clk 0:02:54.1]} 16. Ne4 {[%clk 0:02:50.5]} 16... a5 {[%clk 0:02:54.3]} 17.
b3 {[%clk 0:02:35.9]} 17... Be6 {[%clk 0:02:54.2]} 18. Bb2 {[%clk 0:02:34.2]}
18... Rc8 {[%clk 0:02:49.1]} 19. Ba1 {[%clk 0:02:32.1]} 19... Nd4 {[%clk
0:02:47.3]} 20. Nc4 {[%clk 0:02:24.1]} 20... b5 {[%clk 0:02:43.4]} 21. Ncd2
{[%clk 0:02:25.2]} 21... b4 {[%clk 0:02:42.1]} 22. Nc4 {[%clk 0:02:21.7]} 22...
Rb8 {[%clk 0:02:17]} 23. Nxc5 {[%clk 0:02:21.2]} 23... Bxc4 {[%clk 0:02:11.7]}
24. bxc4 {[%clk 0:02:15.4]} 24... bxa3 {[%clk 0:02:12.3]} 25. Rxb8 {[%clk
0:02:15.5]} 25... Qxb8 {[%clk 0:02:14.2]} 26. Nd7 {[%clk 0:02:16.8]} 26... Qb4
{[%clk 0:02:04.1]} 27. Nxf8 {[%clk 0:02:15.9]} 27... Kxf8 {[%clk 0:02:06]} 28.
Bxd4 {[%clk 0:01:51.1]} 28... exd4 {[%clk 0:02:04.1]} 29. Qb1 {[%clk 0:01:50.4]}
29... Be5 {[%clk 0:01:40.8]} 30. Qa1 {[%clk 0:01:21.4]} 30... Ng8 {[%clk
0:01:08.2]} 31. Rb1 {[%clk 0:01:20.8]} 31... Qa4 {[%clk 0:01:08]} 32. c5 {[%clk
0:01:16.5]} 32... Ne7 {[%clk 0:01:00.5]} 33. Qa2 {[%clk 0:01:13.5]} 33... Nc6
{[%clk 0:00:10.6]} 34. Bxc6 {[%clk 0:01:12.1]} 34... Qxc6 {[%clk 0:00:12.5]} 35.
Qxa3 {[%clk 0:01:13.5]} 35... Bc7 {[%clk 0:00:14.1]} 36. Rc1 {[%clk 0:01:06.4]}
36... h5 {[%clk 0:00:15.3]} 37. Rc4 {[%clk 0:01:04.3]} 37... h4 {[%clk
0:00:15.9]} 38. Qa4 {[%clk 0:01:00.3]} 38... Qd5 {[%clk 0:00:13.6]} 39. Rxd4
{[%clk 0:00:56.9]} 39... Qxc5 {[%clk 0:00:14.9]} 40. Rxh4 {[%clk 0:00:57.7]}
40... Qc1+ {[%clk 0:00:14.6]} 41. Kg2 {[%clk 0:00:59]} 41... Bb6 {[%clk
0:00:16]} 42. Qf4 {[%clk 0:00:51.6]} 42... Qe1 {[%clk 0:00:16.3]} 43. Qb8+
{[%clk 0:00:46.9]} 43... Kg7 {[%clk 0:00:15.5]} 44. Qh8# {[%clk 0:00:47.7]} 1-0

[Event "*** Titled Tuesday 3|2 Blitz (Late)"]
[Site "Chess.com"]
[Date "2016.12.06"]
[Round "8"]
[White "chesstatour"]
[Black "hypert"]
[Result "1-0"]
[WhiteElo "1900"]
[BlackElo "2243"]
[TimeControl "180+2"]
[EndTime "18:39:21 PST"]
[Termination "chesstatour won by resignation"]

1. c4 {[%clk 0:03:02]} 1... e5 {[%clk 0:03:00.5]} 2. Nc3 {[%clk 0:03:02.3]} 2...
Nf6 {[%clk 0:03:01.9]} 3. g3 {[%clk 0:03:02.6]} 3... d5 {[%clk 0:03:02.3]} 4.
cxd5 {[%clk 0:03:02.5]} 4... Nxd5 {[%clk 0:03:04.2]} 5. Bg2 {[%clk 0:03:03.8]}
5... Nb6 {[%clk 0:03:05.4]} 6. Nf3 {[%clk 0:03:04.5]} 6... Nc6 {[%clk
0:03:06.3]} 7. O-O {[%clk 0:03:06]} 7... Be7 {[%clk 0:03:07.8]} 8. e3 {[%clk
0:02:56.4]} 8... O-O {[%clk 0:03:05.9]} 9. d4 {[%clk 0:02:57.5]} 9... exd4
{[%clk 0:03:06.1]} 10. exd4 {[%clk 0:02:58.3]} 10... Nb4 {[%clk 0:02:59.1]} 11.
Ne5 {[%clk 0:02:39]} 11... c6 {[%clk 0:02:56.1]} 12. Re1 {[%clk 0:02:29.8]}
12... Bf5 {[%clk 0:02:53.4]} 13. Ne4 {[%clk 0:02:08.9]} 13... Bxe4 {[%clk
0:02:37.9]} 14. Bxe4 {[%clk 0:02:08.5]} 14... N4d5 {[%clk 0:02:38.7]} 15. Qe2
{[%clk 0:01:59.4]} 15... Re8 {[%clk 0:02:31]} 16. Bxh7+ {[%clk 0:01:31.5]} 16...
Kxh7 {[%clk 0:01:40.1]} 17. Qh5+ {[%clk 0:01:30.3]} 17... Kg8 {[%clk 0:01:41.1]}
18. Qxf7+ {[%clk 0:01:31.2]} 18... Kh7 {[%clk 0:01:20.1]} 19. Qg6+ {[%clk
0:01:25]} 19... Kg8 {[%clk 0:01:19.9]} 20. Qe6+ {[%clk 0:00:40.2]} 20... Kh7
{[%clk 0:01:18.4]} 21. Bh6 {[%clk 0:00:25.3]} 21... Bf6 {[%clk 0:00:51.8]} 22.
Qf5+ {[%clk 0:00:25]} 22... Kg8 {[%clk 0:00:52.5]} 23. Bxg7 {[%clk 0:00:16.6]}
23... Rxe5 {[%clk 0:00:33.3]} 24. dxe5 {[%clk 0:00:14.5]} 24... Bxg7 {[%clk
0:00:33.7]} 25. e6 {[%clk 0:00:15.9]} 25... Qf6 {[%clk 0:00:31]} 26. Qg4 {[%clk
0:00:14.6]} 26... Re8 {[%clk 0:00:30.3]} 27. Re4 {[%clk 0:00:15.5]} 27... Qxb2
{[%clk 0:00:29.7]} 28. Rae1 {[%clk 0:00:16.8]} 28... Nf6 {[%clk 0:00:30]} 29.
Qg6 {[%clk 0:00:16.2]} 29... Nbd5 {[%clk 0:00:25.4]} 30. Qf7+ {[%clk 0:00:16.5]}
30... Kh8 {[%clk 0:00:14.3]} 31. Rh4+ {[%clk 0:00:18.4]} 31... Nh7 {[%clk
0:00:13.3]} 32. Qxe8+ {[%clk 0:00:17.2]} 32... Bf8 {[%clk 0:00:15]} 33. Rxh7+
{[%clk 0:00:16.1]} 33... Kxh7 {[%clk 0:00:14.7]} 34. Qxf8 {[%clk 0:00:17.7]}
34... Qc3 {[%clk 0:00:14.8]} 35. Qf7+ {[%clk 0:00:17.5]} 35... Kh8 {[%clk
0:00:15.3]} 36. Qh5+ {[%clk 0:00:17.2]} 36... Kg7 {[%clk 0:00:15.5]} 37. Qg5+
{[%clk 0:00:16.8]} 37... Kf8 {[%clk 0:00:16.1]} 38. e7+ {[%clk 0:00:16.8]} 38...
Ke8 {[%clk 0:00:16.9]} 39. Qg6+ {[%clk 0:00:16.1]} 39... Kd7 {[%clk 0:00:17.6]}
40. e8=Q+ {[%clk 0:00:17]} 1-0

[Event "*** Titled Tuesday 3|2 Blitz (Late)"]
[Site "Chess.com"]
[Date "2016.12.06"]
[Round "8"]
[White "GM_Barcenilla"]
[Black "dretch"]
[Result "1-0"]
[WhiteElo "2671"]
[BlackElo "2584"]
[TimeControl "180+2"]
[EndTime "18:39:32 PST"]
[Termination "GM_Barcenilla won on time"]

1. c4 {[%clk 0:03:02]} 1... c6 {[%clk 0:02:57.7]} 2. b3 {[%clk 0:03:01.5]} 2...
d5 {[%clk 0:02:57.5]} 3. Bb2 {[%clk 0:03:02.3]} 3... Bg4 {[%clk 0:02:56.7]} 4.
g3 {[%clk 0:03:03.1]} 4... Nd7 {[%clk 0:02:55.7]} 5. Bg2 {[%clk 0:03:02]} 5...
Ngf6 {[%clk 0:02:53.5]} 6. Nf3 {[%clk 0:03:01.2]} 6... e6 {[%clk 0:02:54.6]} 7.
O-O {[%clk 0:03:00.3]} 7... Be7 {[%clk 0:02:55.2]} 8. d3 {[%clk 0:02:59]} 8...
O-O {[%clk 0:02:55.7]} 9. h3 {[%clk 0:02:58.4]} 9... Bh5 {[%clk 0:02:55.2]} 10.
g4 {[%clk 0:02:56.2]} 10... Bg6 {[%clk 0:02:56.2]} 11. Nh4 {[%clk 0:02:56.4]}
11... Ne8 {[%clk 0:02:57.3]} 12. Nxg6 {[%clk 0:02:56.9]} 12... hxg6 {[%clk
0:02:58.7]} 13. Nd2 {[%clk 0:02:49]} 13... Bf6 {[%clk 0:02:59.2]} 14. d4 {[%clk
0:02:49.9]} 14... Nd6 {[%clk 0:02:59]} 15. c5 {[%clk 0:02:46.3]} 15... Nb5
{[%clk 0:02:57.3]} 16. e3 {[%clk 0:02:33]} 16... a5 {[%clk 0:02:39.4]} 17. f4
{[%clk 0:02:24.4]} 17... g5 {[%clk 0:02:38.4]} 18. Nf3 {[%clk 0:02:13.1]} 18...
b6 {[%clk 0:02:12]} 19. a4 {[%clk 0:02:05.2]} 19... Na7 {[%clk 0:02:05.1]} 20.
cxb6 {[%clk 0:01:58.3]} 20... Qxb6 {[%clk 0:01:52.2]} 21. fxg5 {[%clk
0:01:59.2]} 21... Be7 {[%clk 0:01:53.3]} 22. Bc3 {[%clk 0:01:41.6]} 22... Nc8
{[%clk 0:01:38.6]} 23. h4 {[%clk 0:01:36.9]} 23... Nd6 {[%clk 0:01:38.8]} 24.
Nd2 {[%clk 0:01:35.9]} 24... e5 {[%clk 0:01:30.5]} 25. Qf3 {[%clk 0:01:33]}
25... e4 {[%clk 0:01:31]} 26. Qg3 {[%clk 0:01:29.9]} 26... Ne8 {[%clk 0:01:16]}
27. Rab1 {[%clk 0:01:13.4]} 27... Nc7 {[%clk 0:01:11.4]} 28. Qf4 {[%clk
0:00:45.9]} 28... Ne6 {[%clk 0:01:11]} 29. Qf2 {[%clk 0:00:46.5]} 29... Bd6
{[%clk 0:01:00.6]} 30. Nxe4 {[%clk 0:00:44.1]} 30... dxe4 {[%clk 0:01:00.5]} 31.
Bxe4 {[%clk 0:00:46]} 31... Rae8 {[%clk 0:00:58.1]} 32. Bd3 {[%clk 0:00:47.1]}
32... Qc7 {[%clk 0:00:38.5]} 33. Qf3 {[%clk 0:00:43.9]} 33... Bb4 {[%clk
0:00:16.1]} 34. Bb2 {[%clk 0:00:36.1]} 34... Qd6 {[%clk 0:00:16.1]} 35. Rbd1
{[%clk 0:00:31.8]} 35... Nc7 {[%clk 0:00:12.8]} 36. e4 {[%clk 0:00:29.9]} 36...
Ne6 {[%clk 0:00:12.3]} 37. e5 {[%clk 0:00:21.1]} 37... Qc7 {[%clk 0:00:11.7]}
38. Rc1 {[%clk 0:00:22.5]} 38... Rc8 {[%clk 0:00:11.6]} 39. d5 {[%clk
0:00:21.4]} 39... Qb6+ {[%clk 0:00:12.2]} 40. Kh1 {[%clk 0:00:20.2]} 40... Nd4
{[%clk 0:00:10.5]} 41. Qe4 {[%clk 0:00:20.6]} 41... f5 {[%clk 0:00:02.3]} 42.
exf6 {[%clk 0:00:20.8]} 1-0